[Event "Late-Titled-Tuesday-Blitz-February-06-2024"]
[Site "Chess.com"]
[Date "2024.02.06"]
[Round "5"]
[White "YurasovMat-2012"]
[Black "Msb2"]
[Result "1/2-1/2"]
[WhiteElo "2687"]
[BlackElo "2987"]
[TimeControl "180+1"]
[EndTime "14:57:22 PST"]
[Termination "Game drawn - insufficient material"]

1. e4 {[%clk 0:03:00.9]} 1... e6 {[%clk 0:03:00.1]} 2. d3 {[%clk 0:03:00.5]}
2... d5 {[%clk 0:03:00.4]} 3. Nd2 {[%clk 0:03:01.2]} 3... Nf6 {[%clk 0:03:00.9]}
4. Ngf3 {[%clk 0:03:01]} 4... Be7 {[%clk 0:03:01.3]} 5. g3 {[%clk 0:02:59.9]}
5... a5 {[%clk 0:03:01.6]} 6. Bg2 {[%clk 0:03:00.3]} 6... a4 {[%clk 0:03:01.8]}
7. a3 {[%clk 0:02:59.6]} 7... c5 {[%clk 0:03:02.1]} 8. O-O {[%clk 0:02:59.9]}
8... Nc6 {[%clk 0:03:02.9]} 9. Re1 {[%clk 0:02:58.9]} 9... h6 {[%clk 0:03:03.4]}
10. c3 {[%clk 0:02:57.7]} 10... O-O {[%clk 0:03:03.2]} 11. Qc2 {[%clk
0:02:54.5]} 11... Qc7 {[%clk 0:02:59.6]} 12. Nf1 {[%clk 0:02:52.9]} 12... b5
{[%clk 0:02:54.1]} 13. Bf4 {[%clk 0:02:51.3]} 13... Qb6 {[%clk 0:02:51.9]} 14.
Rad1 {[%clk 0:02:48.7]} 14... Bb7 {[%clk 0:02:47.1]} 15. exd5 {[%clk 0:02:48.3]}
15... Nxd5 {[%clk 0:02:46.9]} 16. Bc1 {[%clk 0:02:43.1]} 16... b4 {[%clk
0:02:44]} 17. Ne3 {[%clk 0:02:39.1]} 17... Nxe3 {[%clk 0:02:28.3]} 18. Bxe3
{[%clk 0:02:40]} 18... bxa3 {[%clk 0:02:28.9]} 19. bxa3 {[%clk 0:02:39.6]} 19...
Qc7 {[%clk 0:02:29.5]} 20. Nd2 {[%clk 0:02:36.5]} 20... Na5 {[%clk 0:01:47.8]}
21. Bf4 {[%clk 0:02:19.9]} 21... Qc8 {[%clk 0:01:46.9]} 22. Bxb7 {[%clk
0:02:14.5]} 22... Qxb7 {[%clk 0:01:47.8]} 23. Qxa4 {[%clk 0:02:13]} 23... Nc6
{[%clk 0:01:48.1]} 24. Qc2 {[%clk 0:02:10.6]} 24... Rxa3 {[%clk 0:01:46.6]} 25.
Nc4 {[%clk 0:02:09.8]} 25... Ra6 {[%clk 0:01:44.9]} 26. Rb1 {[%clk 0:02:08.8]}
26... Qd7 {[%clk 0:01:45.5]} 27. Qe2 {[%clk 0:02:04.6]} 27... Bf6 {[%clk
0:01:43]} 28. Ne5 {[%clk 0:02:00.8]} 28... Bxe5 {[%clk 0:01:38.7]} 29. Bxe5
{[%clk 0:02:01.7]} 29... Rd8 {[%clk 0:01:28.6]} 30. Red1 {[%clk 0:01:59.1]}
30... Qd5 {[%clk 0:01:24.7]} 31. Bf4 {[%clk 0:01:58.3]} 31... Ra2 {[%clk
0:01:24.1]} 32. Qe4 {[%clk 0:01:52.5]} 32... g5 {[%clk 0:01:13]} 33. Be3 {[%clk
0:01:50.6]} 33... Ne5 {[%clk 0:01:10.3]} 34. Qxd5 {[%clk 0:01:36.2]} 34... Rxd5
{[%clk 0:01:11.2]} 35. c4 {[%clk 0:01:29.5]} 35... Rxd3 {[%clk 0:01:08.8]} 36.
Rxd3 {[%clk 0:01:25.6]} 36... Nxd3 {[%clk 0:01:09.7]} 37. Rb8+ {[%clk 0:01:25]}
37... Kg7 {[%clk 0:01:09.2]} 38. Rd8 {[%clk 0:01:14.2]} 38... Ra3 {[%clk
0:01:08.1]} 39. Kf1 {[%clk 0:01:11.4]} 39... Kg6 {[%clk 0:00:54]} 40. Ke2 {[%clk
0:01:10.9]} 40... Ne5 {[%clk 0:00:53.3]} 41. Rg8+ {[%clk 0:01:03.5]} 41... Kf5
{[%clk 0:00:52.8]} 42. Rf8 {[%clk 0:00:51.4]} 42... Ra2+ {[%clk 0:00:52.9]} 43.
Kf1 {[%clk 0:00:50.1]} 43... Ke4 {[%clk 0:00:47.7]} 44. Kg2 {[%clk 0:00:44.4]}
44... Ra5 {[%clk 0:00:36.1]} 45. Rc8 {[%clk 0:00:41.1]} 45... Nd3 {[%clk
0:00:32.9]} 46. Rh8 {[%clk 0:00:37.8]} 46... g4 {[%clk 0:00:28.8]} 47. h3 {[%clk
0:00:28.1]} 47... Ne1+ {[%clk 0:00:26]} 48. Kh2 {[%clk 0:00:20]} 48... Nf3+
{[%clk 0:00:23.5]} 49. Kg2 {[%clk 0:00:20.1]} 49... gxh3+ {[%clk 0:00:07.7]} 50.
Kxh3 {[%clk 0:00:20.2]} 50... Ne5 {[%clk 0:00:06.2]} 51. Rxh6 {[%clk 0:00:15.6]}
51... Nxc4 {[%clk 0:00:05.7]} 52. Rh4+ {[%clk 0:00:15.9]} 52... Kd3 {[%clk
0:00:06.2]} 53. Bh6 {[%clk 0:00:14.2]} 53... Nd6 {[%clk 0:00:05.7]} 54. Bf8
{[%clk 0:00:13.7]} 54... Nf5 {[%clk 0:00:05.9]} 55. Rh7 {[%clk 0:00:14]} 55...
Ra7 {[%clk 0:00:04.3]} 56. Bxc5 {[%clk 0:00:13.1]} 56... Rc7 {[%clk 0:00:04.9]}
57. Bf8 {[%clk 0:00:12.6]} 57... Ke4 {[%clk 0:00:05]} 58. Kg2 {[%clk 0:00:12.2]}
58... Nd4 {[%clk 0:00:03.2]} 59. Rh4+ {[%clk 0:00:11.1]} 59... Kd5 {[%clk
0:00:03.9]} 60. Rh5+ {[%clk 0:00:10.2]} 60... e5 {[%clk 0:00:03.5]} 61. Bg7
{[%clk 0:00:09.4]} 61... Nc6 {[%clk 0:00:03.2]} 62. Bxe5 {[%clk 0:00:08.6]}
62... Nxe5 {[%clk 0:00:03.3]} 63. f4 {[%clk 0:00:09.1]} 63... f6 {[%clk
0:00:03.9]} 64. fxe5 {[%clk 0:00:09.5]} 64... fxe5 {[%clk 0:00:04.8]} 65. Kf3
{[%clk 0:00:09.6]} 65... Rc3+ {[%clk 0:00:04.7]} 66. Kf2 {[%clk 0:00:09.8]}
66... Kd4 {[%clk 0:00:05.2]} 67. Rh8 {[%clk 0:00:09.5]} 67... Rc2+ {[%clk
0:00:05]} 68. Kf3 {[%clk 0:00:08.4]} 68... e4+ {[%clk 0:00:05.7]} 69. Kf4 {[%clk
0:00:08.6]} 69... Rf2+ {[%clk 0:00:06.1]} 70. Kg4 {[%clk 0:00:08.6]} 70... e3
{[%clk 0:00:06.2]} 71. Rd8+ {[%clk 0:00:07.9]} 71... Kc3 {[%clk 0:00:06.8]} 72.
Rc8+ {[%clk 0:00:06.3]} 72... Kd2 {[%clk 0:00:07]} 73. Rd8+ {[%clk 0:00:06.5]}
73... Kc1 {[%clk 0:00:07.4]} 74. Rc8+ {[%clk 0:00:06.2]} 74... Kd1 {[%clk
0:00:08]} 75. Rd8+ {[%clk 0:00:06.4]} 75... Rd2 {[%clk 0:00:08.7]} 76. Re8
{[%clk 0:00:06.2]} 76... e2 {[%clk 0:00:09.4]} 77. Kf5 {[%clk 0:00:04.9]} 77...
Rd5+ {[%clk 0:00:08.4]} 78. Kf4 {[%clk 0:00:03.9]} 78... Rd4+ {[%clk 0:00:08.7]}
79. Kf5 {[%clk 0:00:02.6]} 79... Rd5+ {[%clk 0:00:07.8]} 80. Kf4 {[%clk
0:00:03]} 80... e1=Q {[%clk 0:00:04.9]} 81. Rxe1+ {[%clk 0:00:02.2]} 81... Kxe1
{[%clk 0:00:05.8]} 82. g4 {[%clk 0:00:02.6]} 82... Kf2 {[%clk 0:00:06.4]} 83. g5
{[%clk 0:00:02.9]} 83... Rd4+ {[%clk 0:00:04.2]} 84. Ke5 {[%clk 0:00:03]} 84...
Ra4 {[%clk 0:00:02.5]} 85. g6 {[%clk 0:00:03.3]} 85... Ke3 {[%clk 0:00:02.6]}
86. g7 {[%clk 0:00:03.3]} 86... Rg4 {[%clk 0:00:03.3]} 87. Kf6 {[%clk
0:00:03.4]} 87... Kd4 {[%clk 0:00:02.7]} 88. Kf7 {[%clk 0:00:03.5]} 88... Ke5
{[%clk 0:00:03.1]} 89. g8=Q {[%clk 0:00:03.1]} 89... Rxg8 {[%clk 0:00:04]} 90.
Kxg8 {[%clk 0:00:03.7]} 1/2-1/2

[Event "Late-Titled-Tuesday-Blitz-February-06-2024"]
[Site "Chess.com"]
[Date "2024.02.06"]
[Round "5"]
[White "Rsnr"]
[Black "Malev212"]
[Result "0-1"]
[WhiteElo "2895"]
[BlackElo "2675"]
[TimeControl "180+1"]
[EndTime "14:57:44 PST"]
[Termination "Malev212 won by resignation"]

1. d4 {[%clk 0:03:00.9]} 1... g6 {[%clk 0:02:59]} 2. c4 {[%clk 0:03:00.9]} 2...
Bg7 {[%clk 0:02:59.1]} 3. Nf3 {[%clk 0:03:01.6]} 3... d6 {[%clk 0:02:58.1]} 4.
Nc3 {[%clk 0:03:02.3]} 4... c5 {[%clk 0:02:55.8]} 5. dxc5 {[%clk 0:03:01.2]}
5... dxc5 {[%clk 0:02:54.6]} 6. Qxd8+ {[%clk 0:03:00.1]} 6... Kxd8 {[%clk
0:02:54.6]} 7. g3 {[%clk 0:02:55.5]} 7... Bd7 {[%clk 0:02:53.9]} 8. Bg2 {[%clk
0:02:44.9]} 8... Bxc3+ {[%clk 0:02:52.9]} 9. bxc3 {[%clk 0:02:44.9]} 9... Bc6
{[%clk 0:02:52.9]} 10. Bf4 {[%clk 0:02:40.1]} 10... Nd7 {[%clk 0:02:34.8]} 11.
O-O-O {[%clk 0:02:31.6]} 11... Ke8 {[%clk 0:02:31.9]} 12. h4 {[%clk 0:02:28.5]}
12... f6 {[%clk 0:02:28.5]} 13. Bh3 {[%clk 0:02:22.5]} 13... Nb6 {[%clk
0:02:04.1]} 14. Be3 {[%clk 0:01:35.9]} 14... Nxc4 {[%clk 0:01:35.5]} 15. Bxc5
{[%clk 0:01:36]} 15... Nh6 {[%clk 0:01:33.5]} 16. Be6 {[%clk 0:01:34.9]} 16...
Nb6 {[%clk 0:01:21]} 17. Rd2 {[%clk 0:01:25.5]} 17... Bd7 {[%clk 0:01:12.9]} 18.
Bb3 {[%clk 0:01:24.4]} 18... Rc8 {[%clk 0:01:04.2]} 19. Bb4 {[%clk 0:01:24.3]}
19... Nc4 {[%clk 0:00:49.9]} 20. Rd4 {[%clk 0:01:22.3]} 20... Bb5 {[%clk
0:00:44.2]} 21. a4 {[%clk 0:01:20.8]} 21... Ba6 {[%clk 0:00:43.3]} 22. Rhd1
{[%clk 0:01:20.7]} 22... Nf5 {[%clk 0:00:43.4]} 23. Rd5 {[%clk 0:01:12.5]} 23...
Nfd6 {[%clk 0:00:37.7]} 24. Nd4 {[%clk 0:01:05.7]} 24... Kf7 {[%clk 0:00:35.4]}
25. Bxd6 {[%clk 0:00:42.8]} 25... exd6 {[%clk 0:00:33.6]} 26. Rxd6 {[%clk
0:00:43.5]} 26... Kg7 {[%clk 0:00:31.1]} 27. Rd7+ {[%clk 0:00:43.3]} 27... Kh6
{[%clk 0:00:30.4]} 28. Kb1 {[%clk 0:00:18.2]} 28... Rhe8 {[%clk 0:00:29.3]} 29.
e3 {[%clk 0:00:17.8]} 29... Ne5 {[%clk 0:00:27.9]} 30. Rd6 {[%clk 0:00:18.1]}
30... Rxc3 {[%clk 0:00:23.8]} 31. Rxf6 {[%clk 0:00:18]} 31... Nc6 {[%clk
0:00:21.8]} 32. Nf5+ {[%clk 0:00:12.1]} 32... Kh5 {[%clk 0:00:20.4]} 33. Bf7
{[%clk 0:00:11.3]} 33... Re5 {[%clk 0:00:18.5]} 34. f3 {[%clk 0:00:09.7]} 34...
Rxf5 {[%clk 0:00:13]} 35. Rxf5+ {[%clk 0:00:09.6]} 35... Kh6 {[%clk 0:00:13.8]}
36. Rf4 {[%clk 0:00:05.7]} 36... Rxe3 {[%clk 0:00:13.5]} 37. Bd5 {[%clk
0:00:06.1]} 37... Ne5 {[%clk 0:00:13.3]} 38. g4 {[%clk 0:00:05]} 38... Bd3+
{[%clk 0:00:12.1]} 39. Kb2 {[%clk 0:00:04.7]} 39... Kg7 {[%clk 0:00:11.9]} 40.
g5 {[%clk 0:00:05]} 40... Bf5 {[%clk 0:00:11.2]} 41. Rfd4 {[%clk 0:00:04.9]}
41... Nd3+ {[%clk 0:00:09.8]} 42. Ka1 {[%clk 0:00:05]} 42... Nc5 {[%clk
0:00:09.2]} 43. f4 {[%clk 0:00:03]} 43... b6 {[%clk 0:00:08.9]} 44. Kb2 {[%clk
0:00:03.1]} 44... Re2+ {[%clk 0:00:07.9]} 45. R1d2 {[%clk 0:00:03.1]} 45... Re3
{[%clk 0:00:07.6]} 46. Bc6 {[%clk 0:00:03.7]} 46... Nd3+ {[%clk 0:00:06.8]} 47.
Ka1 {[%clk 0:00:03.6]} 47... Kf7 {[%clk 0:00:06.8]} 48. Bd5+ {[%clk 0:00:03.7]}
48... Ke7 {[%clk 0:00:06]} 49. Bc4 {[%clk 0:00:04.6]} 49... Nb4 {[%clk
0:00:04.5]} 50. a5 {[%clk 0:00:04.6]} 50... Nc2+ {[%clk 0:00:03.9]} 51. Rxc2
{[%clk 0:00:03.6]} 51... Bxc2 {[%clk 0:00:04.1]} 52. axb6 {[%clk 0:00:04.2]}
52... axb6 {[%clk 0:00:03.8]} 53. Bg8 {[%clk 0:00:04]} 53... Bf5 {[%clk
0:00:04.2]} 54. Bxh7 {[%clk 0:00:04.1]} 54... Rh3 {[%clk 0:00:04.4]} 55. Bg8
{[%clk 0:00:02.7]} 55... Rxh4 {[%clk 0:00:04.3]} 56. Kb2 {[%clk 0:00:03.4]}
56... Rh2+ {[%clk 0:00:04.7]} 57. Kc3 {[%clk 0:00:04]} 57... Rf2 {[%clk
0:00:04.5]} 58. Kb4 {[%clk 0:00:03.9]} 58... Rf3 {[%clk 0:00:05]} 59. Bc4 {[%clk
0:00:03.8]} 59... Rf2 {[%clk 0:00:04.2]} 60. Kc3 {[%clk 0:00:03.6]} 60... Rf3+
{[%clk 0:00:03.6]} 61. Kd2 {[%clk 0:00:04.1]} 61... Rf2+ {[%clk 0:00:04.3]} 62.
Ke3 {[%clk 0:00:04.6]} 62... Rb2 {[%clk 0:00:04.9]} 63. Bd5 {[%clk 0:00:03.8]}
63... Rb1 {[%clk 0:00:04.2]} 64. Bf3 {[%clk 0:00:03.2]} 64... Re1+ {[%clk
0:00:04.1]} 65. Kd2 {[%clk 0:00:03.4]} 65... Rb1 {[%clk 0:00:04.4]} 66. Ra4
{[%clk 0:00:03.5]} 66... Rb2+ {[%clk 0:00:04.5]} 67. Ke3 {[%clk 0:00:03.8]}
67... Rb3+ {[%clk 0:00:04.6]} 68. Kf2 {[%clk 0:00:04.4]} 68... b5 {[%clk
0:00:04.6]} 69. Ra7+ {[%clk 0:00:04.2]} 69... Kd6 {[%clk 0:00:05.5]} 70. Ra6+
{[%clk 0:00:04.6]} 70... Kc5 {[%clk 0:00:05.3]} 71. Rf6 {[%clk 0:00:03.3]} 71...
b4 {[%clk 0:00:05.1]} 72. Be2 {[%clk 0:00:01.9]} 72... Ra3 {[%clk 0:00:04.7]}
73. Rf8 {[%clk 0:00:01.9]} 73... b3 {[%clk 0:00:04.8]} 74. Rb8 {[%clk
0:00:02.6]} 74... Kd4 {[%clk 0:00:04.8]} 75. Bf3 {[%clk 0:00:01.7]} 75... Ra2+
{[%clk 0:00:04.2]} 76. Kg3 {[%clk 0:00:02.3]} 76... b2 {[%clk 0:00:04.8]} 77.
Bd1 {[%clk 0:00:02.2]} 77... b1=Q {[%clk 0:00:04.5]} 78. Rxb1 {[%clk 0:00:02.1]}
78... Bxb1 {[%clk 0:00:04.9]} 79. Bb3 {[%clk 0:00:02.9]} 79... Rd2 {[%clk
0:00:04.5]} 80. Bf7 {[%clk 0:00:02.7]} 80... Bf5 {[%clk 0:00:04.9]} 81. Kh4
{[%clk 0:00:03.6]} 81... Ke3 {[%clk 0:00:05]} 82. Kg3 {[%clk 0:00:03.7]} 82...
Rd1 {[%clk 0:00:04.2]} 83. Kg2 {[%clk 0:00:03.7]} 83... Rd2+ {[%clk 0:00:03.8]}
84. Kg3 {[%clk 0:00:03.9]} 84... Rf2 {[%clk 0:00:04.7]} 85. Bd5 {[%clk
0:00:03.9]} 85... Rxf4 {[%clk 0:00:04.6]} 86. Bc6 {[%clk 0:00:03.2]} 86... Rg4+
{[%clk 0:00:04.6]} 87. Kh2 {[%clk 0:00:03.9]} 87... Kf4 {[%clk 0:00:04.5]} 88.
Kh1 {[%clk 0:00:02.9]} 88... Rg3 {[%clk 0:00:05]} 89. Kh2 {[%clk 0:00:03.4]}
89... Kg4 {[%clk 0:00:05.1]} 90. Bg2 {[%clk 0:00:03]} 90... Kh4 {[%clk
0:00:05.6]} 91. Bf1 {[%clk 0:00:03.1]} 91... Rxg5 {[%clk 0:00:05.5]} 92. Be2
{[%clk 0:00:03.4]} 92... Be4 {[%clk 0:00:05.4]} 93. Bf1 {[%clk 0:00:04]} 93...
Rg3 {[%clk 0:00:05.5]} 0-1

[Event "Late-Titled-Tuesday-Blitz-February-06-2024"]
[Site "Chess.com"]
[Date "2024.02.06"]
[Round "5"]
[White "FaustinoOro"]
[Black "MolecularChemist"]
[Result "1/2-1/2"]
[WhiteElo "2763"]
[BlackElo "2952"]
[TimeControl "180+1"]
[EndTime "14:58:22 PST"]
[Termination "Game drawn by 50-move rule"]

1. d4 {[%clk 0:03:00.9]} 1... Nf6 {[%clk 0:02:58.8]} 2. Nf3 {[%clk 0:02:59.8]}
2... e6 {[%clk 0:02:59.2]} 3. Bg5 {[%clk 0:02:58]} 3... d5 {[%clk 0:02:57.4]} 4.
e3 {[%clk 0:02:57.3]} 4... Be7 {[%clk 0:02:57.5]} 5. Bd3 {[%clk 0:02:56.5]} 5...
h6 {[%clk 0:02:56.2]} 6. Bh4 {[%clk 0:02:54.3]} 6... c5 {[%clk 0:02:55.1]} 7. c3
{[%clk 0:02:52.8]} 7... Nc6 {[%clk 0:02:54.9]} 8. O-O {[%clk 0:02:52.2]} 8... b6
{[%clk 0:02:52.4]} 9. Nbd2 {[%clk 0:02:50.8]} 9... O-O {[%clk 0:02:51.7]} 10. a4
{[%clk 0:02:39.3]} 10... Bb7 {[%clk 0:02:50.4]} 11. Qe2 {[%clk 0:02:37.1]} 11...
Qc7 {[%clk 0:02:48.2]} 12. Bg3 {[%clk 0:02:33]} 12... Bd6 {[%clk 0:02:46]} 13.
Bxd6 {[%clk 0:02:26.6]} 13... Qxd6 {[%clk 0:02:46.9]} 14. e4 {[%clk 0:02:13.7]}
14... dxe4 {[%clk 0:02:45.7]} 15. Nxe4 {[%clk 0:02:13.7]} 15... Nxe4 {[%clk
0:02:41.3]} 16. Qxe4 {[%clk 0:02:14.6]} 16... f5 {[%clk 0:02:41.5]} 17. Qe3
{[%clk 0:02:05.2]} 17... cxd4 {[%clk 0:02:41.3]} 18. cxd4 {[%clk 0:02:04.9]}
18... Rad8 {[%clk 0:02:40.6]} 19. Bc4 {[%clk 0:01:57.3]} 19... Nxd4 {[%clk
0:02:30.1]} 20. Nxd4 {[%clk 0:01:54]} 20... Qxd4 {[%clk 0:02:31]} 21. Bxe6+
{[%clk 0:01:45.6]} 21... Kh7 {[%clk 0:02:24.7]} 22. Qxd4 {[%clk 0:01:43.8]}
22... Rxd4 {[%clk 0:02:25.6]} 23. Rfd1 {[%clk 0:01:43.1]} 23... Rg4 {[%clk
0:02:15.6]} 24. g3 {[%clk 0:01:36.9]} 24... Rb4 {[%clk 0:02:13.2]} 25. b3 {[%clk
0:01:26.9]} 25... Re4 {[%clk 0:01:38.6]} 26. Bd5 {[%clk 0:01:20.2]} 26... Bxd5
{[%clk 0:01:38.4]} 27. Rxd5 {[%clk 0:01:21.1]} 27... Rb4 {[%clk 0:01:36.4]} 28.
Rd7 {[%clk 0:01:10.1]} 28... a5 {[%clk 0:01:33.7]} 29. Rd3 {[%clk 0:01:06.3]}
29... f4 {[%clk 0:01:31.1]} 30. Kg2 {[%clk 0:01:01.8]} 30... f3+ {[%clk
0:01:25]} 31. Kf1 {[%clk 0:00:55.2]} 31... Rf5 {[%clk 0:01:15.5]} 32. Re1 {[%clk
0:00:52.6]} 32... g5 {[%clk 0:00:57.1]} 33. h3 {[%clk 0:00:46.8]} 33... h5
{[%clk 0:00:57.2]} 34. Re7+ {[%clk 0:00:41.9]} 34... Kg6 {[%clk 0:00:55.6]} 35.
Rd6+ {[%clk 0:00:38.8]} 35... Rf6 {[%clk 0:00:55.8]} 36. Rxf6+ {[%clk
0:00:38.8]} 36... Kxf6 {[%clk 0:00:56.7]} 37. Re3 {[%clk 0:00:39.3]} 37... g4
{[%clk 0:00:56.4]} 38. hxg4 {[%clk 0:00:39.6]} 38... hxg4 {[%clk 0:00:57.3]} 39.
Ke1 {[%clk 0:00:40.1]} 39... Rd4 {[%clk 0:00:57.2]} 40. Rc3 {[%clk 0:00:37.7]}
40... Kf5 {[%clk 0:00:51.6]} 41. Rc6 {[%clk 0:00:33.9]} 41... Rb4 {[%clk
0:00:51.9]} 42. Rc3 {[%clk 0:00:32.9]} 42... Re4+ {[%clk 0:00:52.2]} 43. Kf1
{[%clk 0:00:29]} 43... Ke5 {[%clk 0:00:49.2]} 44. Rc6 {[%clk 0:00:20.7]} 44...
Rb4 {[%clk 0:00:49.1]} 45. Rc3 {[%clk 0:00:20.3]} 45... Kd5 {[%clk 0:00:39.7]}
46. Ke1 {[%clk 0:00:17.4]} 46... Re4+ {[%clk 0:00:40.2]} 47. Kf1 {[%clk
0:00:17.5]} 47... Re2 {[%clk 0:00:37.2]} 48. Rd3+ {[%clk 0:00:13.5]} 48... Kc5
{[%clk 0:00:35.3]} 49. Rc3+ {[%clk 0:00:12.5]} 49... Kb4 {[%clk 0:00:33.8]} 50.
Rc4+ {[%clk 0:00:07.2]} 50... Kxb3 {[%clk 0:00:34.2]} 51. Rxg4 {[%clk
0:00:03.6]} 51... Ra2 {[%clk 0:00:34.9]} 52. Ke1 {[%clk 0:00:02.5]} 52... Re2+
{[%clk 0:00:35.6]} 53. Kd1 {[%clk 0:00:02.3]} 53... Ra2 {[%clk 0:00:36.5]} 54.
Rg6 {[%clk 0:00:02.3]} 54... Rxf2 {[%clk 0:00:28]} 55. Rxb6+ {[%clk 0:00:02.9]}
55... Kxa4 {[%clk 0:00:28.7]} 56. g4 {[%clk 0:00:02.4]} 56... Rg2 {[%clk
0:00:25.3]} 57. Rf6 {[%clk 0:00:02.7]} 57... Rg3 {[%clk 0:00:24.9]} 58. g5
{[%clk 0:00:02.5]} 58... Kb3 {[%clk 0:00:24.2]} 59. g6 {[%clk 0:00:02.4]} 59...
a4 {[%clk 0:00:24.8]} 60. g7 {[%clk 0:00:03]} 60... Rg1+ {[%clk 0:00:12.3]} 61.
Kd2 {[%clk 0:00:03.2]} 61... Rxg7 {[%clk 0:00:12.3]} 62. Rxf3+ {[%clk
0:00:03.9]} 62... Kb2 {[%clk 0:00:12.9]} 63. Rf6 {[%clk 0:00:04]} 63... Rd7+
{[%clk 0:00:13.3]} 64. Ke2 {[%clk 0:00:04]} 64... a3 {[%clk 0:00:13.4]} 65. Rb6+
{[%clk 0:00:04.6]} 65... Ka2 {[%clk 0:00:13.9]} 66. Rb5 {[%clk 0:00:04.4]} 66...
Ka1 {[%clk 0:00:14]} 67. Rb6 {[%clk 0:00:04.8]} 67... a2 {[%clk 0:00:14]} 68.
Rb5 {[%clk 0:00:05.3]} 68... Rd4 {[%clk 0:00:14.1]} 69. Rb6 {[%clk 0:00:03.8]}
69... Rd5 {[%clk 0:00:14.2]} 70. Rb4 {[%clk 0:00:03.8]} 70... Rd7 {[%clk
0:00:09]} 71. Rb5 {[%clk 0:00:03.7]} 71... Rd4 {[%clk 0:00:08.3]} 72. Rb6 {[%clk
0:00:04]} 72... Rh4 {[%clk 0:00:08.5]} 73. Kd2 {[%clk 0:00:04]} 73... Rh1 {[%clk
0:00:07.9]} 74. Kc2 {[%clk 0:00:04.3]} 74... Rb1 {[%clk 0:00:08.4]} 75. Rd6
{[%clk 0:00:03.4]} 75... Rb2+ {[%clk 0:00:08.4]} 76. Kc3 {[%clk 0:00:03.9]}
76... Rb8 {[%clk 0:00:06.8]} 77. Kc2 {[%clk 0:00:04.1]} 77... Rc8+ {[%clk
0:00:05.2]} 78. Kd2 {[%clk 0:00:04.8]} 78... Rc5 {[%clk 0:00:03.7]} 79. Rb6
{[%clk 0:00:04.7]} 79... Rc8 {[%clk 0:00:03.6]} 80. Rb5 {[%clk 0:00:05]} 80...
Rc7 {[%clk 0:00:03.9]} 81. Rb6 {[%clk 0:00:05.5]} 81... Rc4 {[%clk 0:00:04.4]}
82. Rb7 {[%clk 0:00:06.1]} 82... Rh4 {[%clk 0:00:03.9]} 83. Kc2 {[%clk
0:00:06.3]} 83... Rh2+ {[%clk 0:00:04.1]} 84. Kc1 {[%clk 0:00:05.8]} 84... Rh1+
{[%clk 0:00:04.8]} 85. Kc2 {[%clk 0:00:06.4]} 85... Rb1 {[%clk 0:00:05.7]} 86.
Re7 {[%clk 0:00:06]} 86... Rb2+ {[%clk 0:00:06.1]} 87. Kc1 {[%clk 0:00:05.8]}
87... Rb8 {[%clk 0:00:05.9]} 88. Kc2 {[%clk 0:00:04.9]} 88... Rc8+ {[%clk
0:00:05.7]} 89. Kd2 {[%clk 0:00:05.6]} 89... Kb2 {[%clk 0:00:02.6]} 90. Rb7+
{[%clk 0:00:05.1]} 90... Ka3 {[%clk 0:00:02.5]} 91. Ra7+ {[%clk 0:00:05.4]}
91... Kb3 {[%clk 0:00:03]} 92. Rb7+ {[%clk 0:00:05.8]} 92... Ka3 {[%clk
0:00:03.7]} 93. Ra7+ {[%clk 0:00:06.3]} 93... Kb2 {[%clk 0:00:04.5]} 94. Rb7+
{[%clk 0:00:06.9]} 94... Ka1 {[%clk 0:00:05.2]} 95. Rb6 {[%clk 0:00:06.8]} 95...
Rc5 {[%clk 0:00:05.4]} 96. Rb7 {[%clk 0:00:07.1]} 96... Rc4 {[%clk 0:00:05.1]}
97. Rb6 {[%clk 0:00:07.4]} 97... Rh4 {[%clk 0:00:05]} 98. Kc2 {[%clk 0:00:06.9]}
98... Rf4 {[%clk 0:00:03.8]} 99. Rb7 {[%clk 0:00:06.4]} 99... Rf2+ {[%clk
0:00:04.3]} 100. Kc1 {[%clk 0:00:06.4]} 100... Rf1+ {[%clk 0:00:04.9]} 101. Kc2
{[%clk 0:00:07.1]} 101... Rb1 {[%clk 0:00:05.5]} 102. Re7 {[%clk 0:00:07.6]}
102... Rb2+ {[%clk 0:00:04.7]} 103. Kc1 {[%clk 0:00:07.4]} 103... Rb6 {[%clk
0:00:04.8]} 104. Kc2 {[%clk 0:00:07.3]} 104... Rc6+ {[%clk 0:00:05]} 105. Kd2
{[%clk 0:00:07.9]} 105... Rb6 {[%clk 0:00:03.8]} 106. Kc2 {[%clk 0:00:08]}
106... Rc6+ {[%clk 0:00:04]} 107. Kd2 {[%clk 0:00:08.4]} 107... Rc5 {[%clk
0:00:04.6]} 108. Rb7 {[%clk 0:00:07.9]} 108... Rc6 {[%clk 0:00:04.3]} 109. Rb8
{[%clk 0:00:08]} 109... Rc7 {[%clk 0:00:04.5]} 110. Rb6 {[%clk 0:00:08.1]}
110... Rh7 {[%clk 0:00:03]} 111. Kc2 {[%clk 0:00:07.8]} 111... Rh2+ {[%clk
0:00:03.4]} 112. Kc1 {[%clk 0:00:07.9]} 112... Rh4 {[%clk 0:00:03]} 113. Rb8
{[%clk 0:00:06.6]} 113... Rc4+ {[%clk 0:00:03.3]} 114. Kd2 {[%clk 0:00:07]}
114... Rc6 {[%clk 0:00:04.1]} 115. Rb7 {[%clk 0:00:07]} 115... Rh6 {[%clk
0:00:04.3]} 116. Kc2 {[%clk 0:00:06.7]} 116... Rf6 {[%clk 0:00:04.4]} 117. Rb8
{[%clk 0:00:06.7]} 117... Rf2+ {[%clk 0:00:04.9]} 1/2-1/2